fUST/lending_fUST_20240109
["ID","MTS","AMOUNT","RATE_DAILY","PERIOD"]
[310882071,1704767447325,-500.0,0.00036164,2]
[310882072,1704767447339,-287.22304327,0.00036164,2]
[310882073,1704767447350,-890.46,0.00036164,2]
[310882074,1704767447360,-500.0,0.00036164,2]
[310882075,1704767447371,-500.0,0.00036164,2]
[310882076,1704767447381,-151.0,0.00036164,2]
[310882077,1704767447390,-221.429243,0.00036164,2]
[310882078,1704767447401,-221.429243,0.00036164,2]
[310882079,1704767447411,-154.995447,0.00036164,2]
[310882080,1704767447422,-253.37623456,0.0003624,2]
[310882081,1704767447538,-284.90889134,0.00036358,4]
[310882082,1704767447549,-3553.20637466,0.00036358,2]
[310882083,1704767447558,-435.75670154,0.00036358,4]
[310882084,1704767447568,-266.7531457,0.00036358,4]
[310882085,1704767447577,-1983.07,0.00036358,2]
[310882086,1704767447586,-1983.07,0.00036358,2]
[310882087,1704767447595,-1983.07,0.00036358,2]
[310882088,1704767447604,-1983.07,0.00036358,2]
[310882089,1704767447613,-1983.07,0.00036358,2]
[310882090,1704767447622,-158.45765176,0.00036359,4]
[310882091,1704767447631,-317.1659487,0.00036359,2]
[310882210,1704768639285,-156.82833971,0.00023307,2]
[310882211,1704768639294,-154.90705577,0.00023308,2]
[310882212,1704768639303,-385.53900529,0.00023309,2]
[310882213,1704768639340,-20442.58815487,0.00023309,2]
[310882214,1704768639349,-2092.57766549,0.00023309,2]
[310882215,1704768639358,-3385.1134409,0.00023309,2]
[310882216,1704768639371,-3927.64829251,0.00023309,2]
[310882217,1704768639381,-4916.51301772,0.0002331,2]
[310882218,1704768639391,-4112.9548108,0.0002331,2]
[310882219,1704768639400,-9918.08132345,0.0002331,2]
[310882220,1704768639409,-155.19386469,0.00023312,2]
[310882221,1704768639419,-529.70624536,0.00023312,2]
[310882222,1704768639429,-294.68050852,0.00023312,2]
[310882223,1704768639438,-201.84999302,0.00023312,2]
[310882224,1704768639447,-2036.31515544,0.00023312,2]
[310882225,1704768639457,-335.79991163,0.00023312,2]
[310882226,1704768639466,-156.56754629,0.00023312,2]
[310882227,1704768639474,-159.47893567,0.00023316,2]
[310882228,1704768639483,-155.83499206,0.00023316,2]
[310882229,1704768639492,-166.666666,0.00023351,2]
[310882230,1704768639501,-24900.0,0.00023645,2]
[310882231,1704768639510,-166.666666,0.00023988,2]
[310882232,1704768639519,-2292.62638427,0.00024,2]
[310882233,1704768639529,-184.99200067,0.00024464,2]
[310882234,1704768639538,-155.25342692,0.00024494,2]
[310882235,1704768639547,-166.666666,0.00024624,2]
[310882236,1704768639556,-4709.99124251,0.00025258,2]
[310882237,1704768639565,-3000.0,0.00025259,2]
[310882238,1704768639574,-613.86507578,0.0002526,2]
[310882239,1704768639594,-166.666666,0.00025261,2]
[310882240,1704768639603,-166.666666,0.00025898,2]
[310882241,1704768639612,-525.7750246,0.00026,2]
[310882242,1704768639623,-166.666666,0.00026534,2]
[310882243,1704768639632,-582.39674736,0.00026893,2]
[310882244,1704768639641,-382.44097253,0.00026893,2]
[310882245,1704768639650,-1432.71202308,0.00029398,2]
[310882246,1704768639658,-8744.87886164,0.00029505,3]
[310882247,1704768639667,-13358.24729173,0.00029505,3]
[310882248,1704768639676,-98390.71358929,0.00029505,3]
[310882249,1704768639686,-295.431,0.00029532,2]
[310882250,1704768639694,-942.48018458,0.0003,2]
[310882251,1704768639704,-228.60658959,0.0003,4]
[310882252,1704768639713,-711.96848583,0.0003,4]
[310882253,1704768639722,-150.0,0.00032532,2]
[310882254,1704768639731,-3157.32,0.00032691,3]
[310882255,1704768639740,-3788.79,0.00032701,3]
[310882256,1704768639749,-630.87206313,0.00032709,2]
[310882257,1704768639759,-3087.93,0.00032711,3]
[310882258,1704768639768,-4546.55,0.00032711,3]
[310882259,1704768639777,-1300.28860338,0.00032721,4]
[310882260,1704768639787,-899.80517397,0.00033,2]
[310882261,1704768639796,-155.26326361,0.00033,4]
[310882262,1704768639806,-209.771848,0.00033397,2]
[310882263,1704768639818,-1000.0,0.00034,7]
[310882264,1704768639827,-4446.62,0.00034044,3]
[310882265,1704768639836,-234.1695543,0.0003406,4]
[310882266,1704768639846,-4383.09340567,0.00034063,2]
[310882267,1704768639856,-1984.8002941,0.00034064,2]
[310882268,1704768639867,-259.4918409,0.0003423,4]
[310882270,1704768639876,-946.23744718,0.0003423,4]
[310882271,1704768639885,-246.62002174,0.00034231,4]
[310882272,1704768639895,-198.15982049,0.0003448,4]
[310882273,1704768639905,-611.2969959,0.0003448,4]
[310882274,1704768639914,-198.47983112,0.00034481,4]
[310882275,1704768639924,-187.83883713,0.00034481,4]
[310882276,1704768639933,-243.52159536,0.00034491,4]
[310882277,1704768639943,-270.29974291,0.00034491,4]
[310882278,1704768639952,-5000.0,0.00034492,7]
[310882279,1704768639961,-5000.0,0.00034492,7]
[310882280,1704768639971,-944.326625,0.00034521,2]
[310882281,1704768639981,-2955.55767527,0.00034811,10]
[310882282,1704768639990,-300.0,0.000349,17]
[310882283,1704768640000,-154.90705577,0.000349,2]
[310882284,1704768640009,-24140.18610249,0.0003498,14]
[310882285,1704768640018,-414.49733775,0.00034998,4]
[310882286,1704768640027,-499.4651968,0.00034998,4]
[310882287,1704768640037,-350.81148771,0.00034998,4]
[310882288,1704768640046,-40862.68936,0.00034999,4]
[310882289,1704768640056,-188.79007061,0.00035,4]
[310882290,1704768640065,-6452.96007234,0.00035,4]
[310882291,1704768640074,-1457.03369471,0.00035,14]
[310882292,1704768640083,-154.90705577,0.00035,4]
[310882293,1704768640093,-156.08945156,0.00035,6]
[310882294,1704768640102,-3541.79156626,0.00035,2]
[310882295,1704768640111,-7803.1787706,0.00035,4]
[310882296,1704768640121,-1656.16988376,0.00035,45]
[310882297,1704768640131,-332.52969855,0.00035,4]
[310882298,1704768640139,-4214.39982739,0.000353,7]
[310882300,1704768640148,-328.0,0.00035452,2]
[310882302,1704768640157,-47058.90272354,0.000355,14]
[310882304,1704768640165,-523.04448749,0.00035516,2]
[310882305,1704768640174,-5000.0,0.00035601,2]
[310882306,1704768640183,-155.69053498,0.00035615,2]
[310882307,1704768640193,-248.69840265,0.00035615,7]
[310882309,1704768640202,-214.05651292,0.00035615,7]
[310882311,1704768640211,-231.2255281,0.00035616,3]
[310882313,1704768640220,-500.0,0.00035616,2]
[310882315,1704768640229,-500.0,0.00035616,2]
[310882317,1704768640238,-500.0,0.00035616,2]
[310882319,1704768640248,-500.0,0.00035616,2]
[310882321,1704768640256,-500.0,0.00035616,2]
[310882323,1704768640265,-500.0,0.00035616,2]
[310882325,1704768640275,-500.0,0.00035616,2]
[310882327,1704768640284,-500.0,0.00035616,2]
[310882329,1704768640293,-500.0,0.00035616,2]
[310882331,1704768640301,-500.0,0.00035616,2]
[310882333,1704768640310,-500.0,0.00035616,2]
[310882335,1704768640319,-500.0,0.00035616,2]
[310882337,1704768640331,-500.00988812,0.00035616,2]
[310882339,1704768640340,-500.0,0.00035616,2]
[310882341,1704768640348,-500.0,0.00035616,2]
[310882343,1704768640357,-500.0,0.00035616,2]
[310882345,1704768640367,-500.0,0.00035616,2]
[310882347,1704768640376,-500.0,0.00035616,2]
[310882349,1704768640385,-500.0,0.00035616,2]
[310882350,1704768640394,-500.0,0.00035616,2]
[310882351,1704768640403,-501.95820928,0.00035616,2]
[310882352,1704768640412,-500.0,0.00035616,2]
[310882355,1704768640421,-191.4763002,0.00035616,2]
[310882357,1704768640430,-500.0,0.00035616,2]
[310882359,1704768640440,-500.0,0.00035616,2]
[310882361,1704768640449,-369.30655585,0.00035616,2]
[310882363,1704768640458,-500.0,0.00035616,2]
[310882365,1704768640467,-500.0,0.00035616,2]
[310882366,1704768640476,-500.0,0.00035616,2]
[310882368,1704768640485,-503.40087854,0.00035616,2]
[310882370,1704768640494,-500.0,0.00035616,2]
[310882372,1704768640503,-500.0,0.00035616,2]
[310882374,1704768640512,-500.0,0.00035616,2]
[310882376,1704768640521,-500.0,0.00035616,2]
[310882378,1704768640530,-500.0,0.00035616,2]
[310882380,1704768640540,-500.0,0.00035616,2]
[310882383,1704768640550,-500.0,0.00035616,2]
[310882385,1704768640559,-150.90504955,0.00035616,2]
[310882387,1704768640569,-500.0,0.00035616,2]
[310882389,1704768640578,-500.0,0.00035616,2]
[310882390,1704768640587,-500.0,0.00035616,2]
[310882392,1704768640596,-549.71,0.00035616,2]
[310882394,1704768640608,-520.33022276,0.00035616,2]
[310882396,1704768640617,-500.0,0.00035616,2]
[310882399,1704768640627,-500.0,0.00035616,2]
[310882401,1704768640636,-1252.35,0.00035616,2]
[310882403,1704768640645,-504.20187215,0.00035616,2]
[310882405,1704768640655,-500.0,0.00035616,2]
[310882407,1704768640664,-500.0,0.00035616,2]
[310882409,1704768640673,-500.0,0.00035616,2]
[310882410,1704768640683,-500.0,0.00035616,2]
[310882412,1704768640692,-501.4790848,0.00035616,2]
[310882415,1704768640703,-500.0,0.00035616,2]
[310882417,1704768640712,-506.19969527,0.00035616,2]
[310882419,1704768640721,-500.0,0.00035616,2]
[310882421,1704768640731,-500.0,0.00035616,2]
[310882423,1704768640741,-500.0,0.00035616,2]
[310882425,1704768640749,-500.0,0.00035616,2]
[310882427,1704768640758,-500.0,0.00035616,2]
[310882429,1704768640767,-500.01060838,0.00035616,2]
[310882431,1704768640776,-500.41320758,0.00035616,2]
[310882433,1704768640786,-3214.85,0.00035616,2]
[310882435,1704768640795,-501.30944733,0.00035616,2]
[310882437,1704768640805,-500.0,0.00035616,2]
[310882439,1704768640818,-500.0,0.00035616,2]
[310882441,1704768640827,-500.0,0.00035616,2]
[310882442,1704768640836,-502.98515629,0.00035616,2]
[310882444,1704768640845,-639.2121689,0.00035616,2]
[310882446,1704768640854,-500.0,0.00035616,2]
[310882448,1704768640863,-770.26,0.00035616,2]
[310882450,1704768640872,-500.0,0.00035616,2]
[310882452,1704768640881,-197.03020795,0.00035616,2]
[310882454,1704768640890,-500.0,0.00035616,2]
[310882456,1704768640899,-1247.12,0.00035616,2]
[310882458,1704768640908,-1247.12,0.00035616,2]
[310882460,1704768640918,-1247.12,0.00035616,2]
[310882462,1704768640927,-517.86667267,0.00035616,2]
[310882464,1704768640937,-1247.12,0.00035616,2]
[310882466,1704768640947,-1247.12,0.00035616,2]
[310882468,1704768640956,-1247.12,0.00035616,2]
[310882470,1704768640966,-1247.12,0.00035616,2]
[310882473,1704768640974,-1247.12,0.00035616,2]
[310882474,1704768640983,-1247.12,0.00035616,2]
[310882475,1704768640993,-1247.12,0.00035616,2]
[310882476,1704768641002,-1247.12,0.00035616,2]
[310882477,1704768641011,-1247.12,0.00035616,2]
[310882478,1704768641020,-1247.12,0.00035616,2]
[310882479,1704768641030,-1247.12,0.00035616,2]
[310882480,1704768641039,-1247.12,0.00035616,2]
[310882481,1704768641048,-500.0,0.00035616,2]
[310882482,1704768641057,-500.0,0.00035616,2]
[310882483,1704768641067,-500.0,0.00035616,2]
[310882484,1704768641076,-500.0,0.00035616,2]
[310882485,1704768641085,-500.53498006,0.00035616,2]
[310882486,1704768641094,-500.0,0.00035616,2]
[310882487,1704768641103,-500.0,0.00035616,2]
[310882488,1704768641113,-513.49699543,0.00035616,2]
[310882489,1704768641122,-500.0,0.00035616,2]
[310882490,1704768641131,-510.51561126,0.00035616,2]
[310882491,1704768641141,-500.0,0.00035616,2]
[310882492,1704768641151,-500.0,0.00035616,2]
[310882493,1704768641161,-554.90031122,0.00035616,2]
[310882494,1704768641170,-500.0,0.00035616,2]
[310882495,1704768641179,-397.5735743,0.00035616,2]
[310882496,1704768641188,-303.78797855,0.00035616,2]
[310882497,1704768641198,-505.18253377,0.00035616,2]
[310882498,1704768641207,-500.0,0.00035616,2]
[310882499,1704768641216,-305.56124522,0.00035616,2]
[310882500,1704768641225,-1758.55,0.00035616,2]
[310882501,1704768641234,-500.0,0.00035616,2]
[310882502,1704768641244,-299.67374614,0.00035616,2]
[310882503,1704768641253,-500.0,0.00035616,2]
[310882504,1704768641262,-1406.21,0.00035616,2]
[310882505,1704768641272,-500.0,0.00035616,2]
[310882506,1704768641282,-500.0,0.00035616,2]
[310882507,1704768641291,-511.08546155,0.00035616,2]
[310882508,1704768641300,-567.1617221,0.00035616,2]
[310882509,1704768641310,-500.0,0.00035616,2]
[310882510,1704768641319,-500.0,0.00035616,2]
[310882511,1704768641329,-506.80683171,0.00035616,2]
[310882512,1704768641338,-220.0,0.00035616,2]
[310882513,1704768641347,-513.51702195,0.00035616,2]
[310882514,1704768641357,-502.59833004,0.00035616,2]
[310882515,1704768641366,-500.0,0.00035616,2]
[310882516,1704768641375,-609.81,0.00035616,2]
[310882517,1704768641384,-500.0,0.00035616,2]
[310882518,1704768641394,-205.3030203,0.00035616,2]
[310882519,1704768641403,-500.0,0.00035616,2]
[310882520,1704768641412,-500.0,0.00035616,2]
[310882521,1704768641422,-519.20011545,0.00035616,2]
[310882522,1704768641431,-500.0,0.00035616,2]
[310882523,1704768641440,-517.84558427,0.00035616,2]
[310882524,1704768641450,-508.34241231,0.00035616,2]
[310882525,1704768641459,-307.51765686,0.00035616,2]
[310882526,1704768641469,-500.0,0.00035616,2]
[310882527,1704768641479,-604.64057332,0.00035616,2]
[310882528,1704768641489,-500.0,0.00035616,2]
[310882529,1704768641498,-608.25509253,0.00035616,2]
[310882530,1704768641508,-500.0,0.00035616,2]
[310882531,1704768641518,-500.0,0.00035616,2]
[310882532,1704768641528,-547.39227854,0.00035616,2]
[310882533,1704768641539,-500.0,0.00035616,2]
[310882534,1704768641548,-500.0,0.00035616,2]
[310882535,1704768641558,-500.0,0.00035616,2]
[310882536,1704768641568,-500.0039697,0.00035616,2]
[310882537,1704768641578,-500.0,0.00035616,2]
[310882538,1704768641595,-522.91458442,0.00035616,2]
[310882539,1704768641605,-501.03286925,0.00035616,2]
[310882540,1704768641616,-522.56090064,0.00035616,2]
[310882541,1704768641626,-503.17940485,0.00035616,2]
[310882542,1704768641636,-500.86593983,0.00035616,2]
[310882543,1704768641646,-500.0,0.00035616,2]
[310882544,1704768641657,-500.0,0.00035616,2]
[310882545,1704768641668,-500.0,0.00035616,2]
[310882546,1704768641677,-500.0,0.00035616,2]
[310882547,1704768641688,-335.92479617,0.00035616,2]
[310882548,1704768641697,-500.0,0.00035616,2]
[310882549,1704768641708,-500.78632076,0.00035616,2]
[310882550,1704768641718,-500.0,0.00035616,2]
[310882551,1704768641728,-500.0,0.00035616,2]
[310882552,1704768641739,-500.0,0.00035616,2]
[310882553,1704768641749,-500.0,0.00035616,2]
[310882554,1704768641761,-500.0,0.00035616,2]
[310882555,1704768641772,-638.75462537,0.00035616,2]
[310882556,1704768641783,-500.0,0.00035616,2]
[310882557,1704768641793,-1106.28,0.00035616,2]
[310882558,1704768641804,-501.91854851,0.00035616,2]
[310882559,1704768641817,-1176.18,0.00035616,2]
[310882560,1704768641829,-500.69611721,0.00035616,2]
[310882561,1704768641840,-500.0,0.00035616,2]
[310882562,1704768641852,-500.0,0.00035616,2]
[310882563,1704768641864,-500.0,0.00035616,2]
[310882564,1704768641874,-500.0,0.00035616,2]
[310882565,1704768641884,-500.0,0.00035616,2]
[310882566,1704768641895,-500.0,0.00035616,2]
[310882567,1704768641906,-500.0,0.00035616,2]
[310882568,1704768641918,-500.0,0.00035616,2]
[310882569,1704768641930,-500.0,0.00035616,2]
[310882570,1704768641941,-457.66355864,0.00035616,2]
[310882571,1704768641951,-220.47107168,0.00035616,2]
[310882572,1704768641961,-500.0,0.00035616,2]
[310882573,1704768642073,-500.0,0.00035616,2]
[310882574,1704768642083,-500.0,0.00035616,2]
[310882575,1704768642093,-500.0,0.00035616,2]
[310882576,1704768642104,-507.81220053,0.00035616,2]
[310882577,1704768642114,-502.1875027,0.00035616,2]
[310882578,1704768642124,-500.0,0.00035616,2]
[310882579,1704768642133,-520.06525507,0.00035616,2]
[310882580,1704768642144,-500.0,0.00035616,2]
[310882581,1704768642154,-500.0,0.00035616,2]
[310882582,1704768642165,-506.9921166,0.00035616,2]
[310882583,1704768642174,-501.41201149,0.00035616,2]
[310882584,1704768642185,-506.55662619,0.00035616,2]
[310882585,1704768642194,-500.64041583,0.00035616,2]
[310882586,1704768642205,-500.0,0.00035616,2]
[310882587,1704768642214,-511.46965573,0.00035616,2]
[310882588,1704768642226,-500.0,0.00035616,2]
[310882589,1704768642235,-500.0,0.00035616,2]
[310882590,1704768642245,-500.0,0.00035616,2]
[310882591,1704768642254,-604.73200117,0.00035616,2]
[310882592,1704768642263,-500.0,0.00035616,2]
[310882593,1704768642272,-502.87066445,0.00035616,2]
[310882594,1704768642281,-500.0,0.00035616,2]
[310882595,1704768642291,-500.0,0.00035616,2]
[310882596,1704768642300,-500.0,0.00035616,2]
[310882597,1704768642309,-500.0,0.00035616,2]
[310882598,1704768642319,-500.0,0.00035616,2]
[310882599,1704768642330,-500.0,0.00035616,2]
[310882600,1704768642339,-233.79913134,0.00035616,2]
[310882601,1704768642349,-500.0,0.00035616,2]
[310882602,1704768642359,-504.49001362,0.00035616,2]
[310882603,1704768642368,-301.78455933,0.00035616,2]
[310882604,1704768642377,-500.0,0.00035616,2]
[310882605,1704768642386,-500.0,0.00035616,2]
[310882606,1704768642396,-500.0,0.00035616,2]
[310882607,1704768642405,-853.36,0.00035616,2]
[310882608,1704768642414,-500.0,0.00035616,2]
[310882609,1704768642423,-500.0,0.00035616,2]
[310882610,1704768642432,-562.27630934,0.00035616,2]
[310882611,1704768642442,-500.0,0.00035616,2]
[310882612,1704768642452,-1163.46,0.00035616,2]
[310882613,1704768642461,-500.0,0.00035616,2]
[310882614,1704768642470,-500.0,0.00035616,2]
[310882615,1704768642479,-511.16530344,0.00035616,2]
[310882616,1704768642489,-500.0,0.00035616,2]
[310882617,1704768642498,-2401.08,0.00035616,2]
[310882618,1704768642507,-500.0,0.00035616,2]
[310882619,1704768642516,-500.0,0.00035616,2]
[310882620,1704768642525,-5371.74,0.00035616,2]
[310882621,1704768642534,-505.11944561,0.00035616,2]
[310882622,1704768642544,-500.0,0.00035616,2]
[310882623,1704768642554,-500.0,0.00035616,2]
[310882624,1704768642564,-500.0,0.00035616,2]
[310882625,1704768642573,-501.84157681,0.00035616,2]
[310882626,1704768642592,-500.0,0.00035616,2]
[310882627,1704768642601,-500.0,0.00035616,2]
[310882628,1704768642611,-2790.05,0.00035616,2]
[310882629,1704768642621,-500.0,0.00035616,2]
[310882630,1704768642630,-503.83782497,0.00035616,2]
[310882631,1704768642641,-500.0,0.00035616,2]
[310882632,1704768642650,-972.77,0.00035616,2]
[310882633,1704768642660,-500.0,0.00035616,2]
[310882634,1704768642669,-797.74,0.00035616,2]
[310882635,1704768642678,-500.0,0.00035616,2]
[310882636,1704768642687,-500.0,0.00035616,2]
[310882637,1704768642698,-509.18906522,0.00035616,2]
[310882638,1704768642707,-501.80769556,0.00035616,2]
[310882640,1704768642717,-502.36846477,0.00035616,2]
[310882642,1704768642726,-1316.75,0.00035616,2]
[310882643,1704768642735,-500.0,0.00035616,2]
[310882644,1704768642745,-505.3807051,0.00035616,2]
[310882647,1704768642754,-500.0,0.00035616,2]
[310882649,1704768642763,-504.13506503,0.00035616,2]
[310882650,1704768642772,-500.0,0.00035616,2]
[310882651,1704768642781,-674.79,0.00035616,2]
[310882653,1704768642789,-500.0,0.00035616,2]
[310882654,1704768642800,-2007.13,0.00035616,2]
[310882655,1704768642810,-504.15977525,0.00035616,2]
[310882656,1704768642821,-500.9652095,0.00035616,2]
[310882657,1704768642830,-500.79142979,0.00035616,2]
[310882658,1704768642839,-500.0,0.00035616,2]
[310882659,1704768642848,-500.0,0.00035616,2]
[310882660,1704768642858,-500.0,0.00035616,2]
[310882661,1704768642867,-500.0,0.00035616,2]
[310882662,1704768642876,-500.0,0.00035616,2]
[310882663,1704768642886,-1370.36,0.00035616,2]
[310882664,1704768642895,-435.80051183,0.00035616,2]
[310882665,1704768642904,-500.0,0.00035616,2]
[310882666,1704768642914,-500.0,0.00035616,2]
[310882667,1704768642923,-500.0,0.00035616,2]
[310882669,1704768642931,-500.0,0.00035616,2]
[310882670,1704768642940,-500.0,0.00035616,2]
[310882671,1704768642949,-500.0,0.00035616,2]
[310882672,1704768642958,-5713.43,0.00035616,2]
[310882673,1704768642967,-500.0,0.00035616,2]
[310882674,1704768642976,-500.0,0.00035616,2]
[310882675,1704768642985,-500.0,0.00035616,2]
[310882676,1704768642994,-48107.56,0.00035616,2]
[310882677,1704768643003,-500.0,0.00035616,2]
[310882678,1704768643013,-500.0,0.00035616,2]
[310882679,1704768643022,-500.0,0.00035616,2]
[310882680,1704768643031,-500.0,0.00035616,2]
[310882682,1704768643040,-397.74275087,0.00035616,2]
[310882684,1704768643049,-500.0,0.00035616,2]
[310882686,1704768643059,-500.0,0.00035616,2]
[310882687,1704768643068,-1654.94,0.00035616,2]
[310882688,1704768643077,-500.0,0.00035616,2]
[310882689,1704768643086,-500.0,0.00035616,2]
[310882690,1704768643095,-500.0,0.00035616,2]
[310882691,1704768643104,-500.0,0.00035616,5]
[310882692,1704768643113,-500.85991051,0.00035616,2]
[310882693,1704768643122,-500.55118604,0.00035616,2]
[310882694,1704768643131,-504.70031136,0.00035616,2]
[310882695,1704768643140,-500.0,0.00035616,2]
[310882696,1704768643149,-588.83,0.00035616,2]
[310882697,1704768643158,-500.0,0.00035616,2]
[310882698,1704768643167,-13892.66,0.00035616,2]
[310882699,1704768643176,-500.0,0.00035616,2]
[310882700,1704768643185,-500.0,0.00035616,2]
[310882701,1704768643194,-500.0,0.00035616,2]
[310882702,1704768643203,-156.10732819,0.00035616,2]
[310882703,1704768643211,-517.60631347,0.00035616,2]
[310882704,1704768643220,-1961.83,0.00035616,2]
[310882705,1704768643229,-2101.5,0.00035616,2]
[310882706,1704768643238,-500.0,0.00035616,2]
[310882707,1704768643248,-500.0,0.00035616,2]
[310882708,1704768643257,-540.34902769,0.00035616,2]
[310882709,1704768643266,-500.0,0.00035616,2]
[310882710,1704768643275,-500.0,0.00035616,2]
[310882711,1704768643284,-500.0,0.00035616,2]
[310882712,1704768643293,-2422.78,0.00035616,2]
[310882713,1704768643302,-500.0,0.00035616,2]
[310882714,1704768643311,-500.0,0.00035616,2]
[310882715,1704768643320,-502.78393831,0.00035616,2]
[310882716,1704768643330,-500.0,0.00035616,2]
[310882717,1704768643339,-500.0,0.00035616,2]
[310882718,1704768643348,-500.0,0.00035616,2]
[310882719,1704768643358,-500.0,0.00035616,2]
[310882720,1704768643367,-1000.0,0.00035616,2]
[310882721,1704768643377,-500.0,0.00035616,2]
[310882722,1704768643386,-500.0,0.00035616,2]
[310882723,1704768643396,-500.90203694,0.00035616,2]
[310882724,1704768643405,-500.0,0.00035616,2]
[310882725,1704768643415,-500.0,0.00035616,2]
[310882726,1704768643425,-1343.37,0.00035616,2]
[310882727,1704768643434,-500.0,0.00035616,2]
[310882728,1704768643444,-500.0,0.00035616,2]
[310882729,1704768643453,-622.76,0.00035616,2]
[310882730,1704768643463,-646.97,0.00035616,2]
[310882731,1704768643473,-1234.65,0.00035616,2]
[310882732,1704768643482,-480.60904394,0.00035616,2]
[310882733,1704768643491,-500.0,0.00035616,2]
[310882734,1704768643500,-500.0,0.00035616,2]
[310882735,1704768643510,-500.0,0.00035616,2]
[310882736,1704768643520,-150.2032635,0.00035616,7]
[310882737,1704768643529,-500.0,0.00035616,2]
[310882738,1704768643538,-500.0,0.00035616,2]
[310882739,1704768643547,-1790.81,0.00035616,2]
[310882740,1704768643556,-500.0,0.00035616,2]
[310882741,1704768643566,-500.0,0.00035616,2]
[310882742,1704768643575,-500.0,0.00035616,2]
[310882743,1704768643585,-500.0,0.00035616,2]
[310882744,1704768643598,-526.27006981,0.00035616,2]
[310882745,1704768643607,-500.0,0.00035616,2]
[310882746,1704768643616,-500.0,0.00035616,2]
[310882747,1704768643627,-970.89,0.00035616,2]
[310882748,1704768643636,-500.0,0.00035616,2]
[310882749,1704768643645,-500.0,0.00035616,2]
[310882750,1704768643654,-500.0,0.00035616,2]
[310882751,1704768643663,-207.68327922,0.00035616,2]
[310882752,1704768643672,-500.0,0.00035616,2]
[310882753,1704768643681,-502.32816693,0.00035616,2]
[310882754,1704768643691,-500.0,0.00035616,2]
[310882755,1704768643700,-502.68075034,0.00035616,2]
[310882756,1704768643710,-500.6274325,0.00035616,2]
[310882757,1704768643719,-500.0,0.00035616,2]
[310882758,1704768643728,-500.0,0.00035616,2]
[310882759,1704768643738,-164.480547,0.00035616,120]
[310882760,1704768643747,-2713.55973559,0.0003569,12]
[310882761,1704768643756,-30848.36745887,0.0003579,3]
[310882762,1704768643766,-944.326625,0.00035798,2]
[310882763,1704768643775,-1312.45690823,0.00035888,4]
[310882764,1704768643784,-1384.38039422,0.00035888,4]
[310882765,1704768643793,-1247.12,0.00035888,2]
[310882766,1704768643803,-160.0,0.00035889,10]
[310882767,1704768643815,-160.0,0.00035889,10]
[310882768,1704768643824,-1247.12,0.00035889,2]
[310882769,1704768643834,-1247.12,0.00035889,2]
[310882770,1704768643843,-1247.12,0.00035889,2]
[310882771,1704768643852,-1247.12,0.00035889,2]
[310882772,1704768643861,-1247.12,0.00035889,2]
[310882773,1704768643871,-1247.12,0.00035889,2]
[310882774,1704768643880,-1247.12,0.00035889,2]
[310882775,1704768643889,-1247.30844852,0.00035889,2]
[310882776,1704768643898,-180.17,0.00035889,2]
[310882777,1704768643908,-180.17,0.00035889,2]
[310882778,1704768643917,-180.17,0.00035889,2]
[310882779,1704768643927,-548.35574145,0.0003589,2]
[310882780,1704768643937,-500.0,0.0003589,2]
[310882781,1704768643946,-500.0,0.0003589,2]
[310882782,1704768643957,-500.0,0.0003589,2]
[310882783,1704768643966,-500.0,0.0003589,2]
[310882784,1704768643975,-500.0,0.0003589,2]